Cogmind - Beta 14 @@@ ROGUE MODE // 2024.09.04 @ 22:22:55 Player: CatgirlLyra Result: Destroyed by S-10 Pest with Light Assault Rifle Performance ------------- Evolutions (2) 1000 Regions Visited (8) 1600 Robots Destroyed (57) 285 Value Destroyed (1955) 1955 Prototype IDs (6) 120 Alien Tech Used (0) 0 Bonus (956) 956 TOTAL SCORE: 5916 Bonus ------- High Alert Combat Kills 56 Entered Garrisons 400 Used RIF Installer 500 Cogmind --------- Core Integrity 0/550 Matter 297/300 Energy 259/280 System Corruption 0% Temperature Cool (4) Movement Treading (160) Location -8/Garrison Parts ------- > --- POWER (1) -------- Cooled Ion Engine > --- PROPULSION (3) --- Light Treads Light Treads Light Treads > --- UTILITY (4) ------ Cooling System Disposable Heat Sink Large Storage Unit Light Armor Plating > --- WEAPON (3) ------- High-powered Shock Rifle Particle Gun Heavy Assault Rifle > --- INVENTORY (15) --- Reinforced Ion Engine Cooled Ion Engine Improved Heat Sink Large Matter Pod (150) Experimental Sensor Array Light Armor Plating High-powered Tractor Beam High-powered Shock Rifle High-powered Shock Rifle Beam Rifle Improved Proton Missile Launcher Improved Proton Missile Launcher Rocket Launcher Mini Grenade Launcher Mini Grenade Launcher Peak State ------------ > --- POWER ------------ Reinforced Ion Engine > --- PROPULSION ------- Light Treads Light Treads Light Treads > --- UTILITY ---------- Cooling System Disposable Heat Sink Large Storage Unit Seismic Detector > --- WEAPON ----------- High-powered Shock Rifle High-powered Shock Rifle Autogun > --- INVENTORY -------- Cooled Ion Engine Cooled Ion Engine Light Deuterium Engine Improved Heat Sink Large Matter Pod Experimental Sensor Array High-powered Tractor Beam High-powered Shock Rifle Particle Gun Improved Proton Missile Launcher Improved Proton Missile Launcher Rocket Launcher Mini Grenade Launcher Mini Grenade Launcher Mini Grenade Launcher [Rating: 28] Favorites ----------- Power Cooled Ion Engine Engine Cooled Ion Engine Propulsion Light Treads Treads Light Treads Leg Aluminum Leg Utility Disposable Heat Sink Device Disposable Heat Sink Storage Large Storage Unit Protection Light Armor Plating Weapon Small Laser Energy Gun Small Laser Ballistic Gun Light Assault Rifle Launcher Grenade Launcher Build | -11 -10 -10 -10 -9 -8 -8 -8 -8 ------- Run | Yrd Mat Min Exi Min Mat Gar Mat Gar Slots Evolved 4 | . . . . . 4 . . . Power . | . . . . . . . . . Propulsion 1 | . . . . . 1 . . . Utility 2 | . . . . . 2 . . . Weapon 1 | . . . . . 1 . . . Parts Attached 56 | 6 6 1 . 2 3 13 15 10 Power 5 | 1 1 . . . . 1 1 1 Engine 5 | 1 1 . . . . 1 1 1 Core . | . . . . . . . . . Reactor . | . . . . . . . . . Propulsion 18 | 2 . . . 2 1 8 4 1 Treads 15 | 2 . . . 2 1 5 4 1 Leg 3 | . . . . . . 3 . . Wheel . | . . . . . . . . . Hover . | . . . . . . . . . Flight . | . . . . . . . . . Utility 11 | 1 4 . . . 2 . 3 1 Device 7 | . 2 . . . 2 . 3 . Storage 3 | 1 2 . . . . . . . Processor . | . . . . . . . . . Hackware . | . . . . . . . . . Protection 1 | . . . . . . . . 1 Artifact . | . . . . . . . . . Weapon 22 | 2 1 1 . . . 4 7 7 Energy Gun 9 | 1 1 . . . . . 3 4 Energy Cannon . | . . . . . . . . . Ballistic Gun 5 | 1 . 1 . . . 1 1 1 Ballistic Cannon . | . . . . . . . . . Launcher 8 | . . . . . . 3 3 2 Special Weapon . | . . . . . . . . . Impact Weapon . | . . . . . . . . . Slashing Weapon . | . . . . . . . . . Piercing Weapon . | . . . . . . . . . Special Melee Weapon . | . . . . . . . . . Unidentified Prototypes 2 | . 1 . . . 1 . . . Parts Lost 18 | . 1 . . 1 . 13 3 . Power 2 | . . . . . . 2 . . Propulsion 10 | . . . . 1 . 7 2 . Utility . | . . . . . . . . . Weapon 6 | . 1 . . . . 4 1 . Highest Loss Streak 11 | . 1 . . 1 . 11 2 . To Critical Strikes . | . . . . . . . . . Average Slot Usage (%) 91 | . 98 100 100 100 82 68 85 99 Engine 10 | . 14 14 14 14 9 2 8 9 Treads 23 | . 28 28 28 28 27 13 20 27 Leg 2 | . . . . . . 9 6 . Device 16 | . 11 14 14 14 19 18 21 21 Storage 11 | . 15 14 14 14 9 9 9 9 Energy Gun 11 | . 14 14 14 14 9 1 13 17 Ballistic Gun 9 | . 14 14 14 14 9 2 5 9 Launcher 2 | . . . . . . 12 2 . Peak Build Rating 28 | 6 12 13 13 13 24 18 25 28 Average Rating 15 | 4 10 12 13 12 18 15 20 24 On Entrance 12 | . 6 12 13 13 13 17 17 20 Naked Turns . | . . . . . . . . . Heaviest Build 51 | 13 32 32 31 31 33 32 43 51 Greatest Support 60 | 40 40 40 40 40 60 60 60 60 Greatest Overweight (x) 1 | . . . . . . 1 1 . Average Overweight (x) . | . . . . . . . . . Largest Inventory Capacity 15 | 8 15 15 15 15 15 15 15 15 Average Capacity 14 | 6 12 15 15 15 15 15 15 15 Most Carried 15 | 6 15 15 15 15 14 14 15 15 Average Carried 13 | 3 10 14 15 14 12 10 14 14 Final Capacity 15 | 8 15 15 15 15 15 15 15 15 Final Carried 15 | 6 15 15 15 14 14 11 15 15 Class Distribution -------------------- 70% | Mutant 10% | Scavenger-Mutant 10% | Scavenger-Gunner 8% | Scavenger-Tank Dominant Class ---------------- Mutant | -10/Materials Mutant | -10/Mines Mutant | -10/Exiles Mutant | -9/Mines Scavenger-Mutant | -8/Materials Mutant | -8/Garrison Scavenger-Gunner | -8/Materials Scavenger-Tank | -8/Garrison Resources | -11 -10 -10 -10 -9 -8 -8 -8 -8 ----------- Run | Yrd Mat Min Exi Min Mat Gar Mat Gar Matter Collected 1403 | 64 350 25 . 169 . 261 358 176 Remotely . | . . . . . . . . . Salvage Created 1912 | . 361 51 . 121 . 369 620 390 Parts 114 | . 29 5 . 5 . 12 32 31 Haulers Intercepted 4 | . 1 . . . . . 3 . Recyclers Shooed 4 | . . . . . . . 4 . Parts Field Recycled . | . . . . . . . . . Retrieved Matter . | . . . . . . . . . Parts Self-Destructed . | . . . . . . . . . Prevented . | . . . . . . . . . Kills | -11 -10 -10 -10 -9 -8 -8 -8 -8 ------- Run | Yrd Mat Min Exi Min Mat Gar Mat Gar Combat Hostiles Destroyed 48 | . 10 3 . 6 . 12 11 6 Melee 2 | . . . . . . 2 . . Guns 33 | . 10 3 . 6 . 2 10 2 AOE 13 | . . . . . . 8 1 4 Classes Destroyed 12 | . 5 . . 2 . 3 2 . Worker 2 | . . . . . . . 2 . Hauler 4 | . 1 . . . . . 3 . Recycler 1 | . . . . . . . 1 . Operator 1 | . 1 . . . . . . . Watcher 2 | . 1 . . . . . . 1 Swarmer 13 | . 6 3 . 4 . . . . Grunt 19 | . 4 . . . . 7 8 . Brawler 3 | . . . . . . 2 1 . Duelist 2 | . . . . . . 1 1 . Sentry 8 | . . . . 1 . 1 1 5 Hunter 2 | . . . . . . 1 . 1 Assembled 1 | . . . . 1 . . . . Best Kill Streak 7 | . 7 3 . 4 . 4 7 5 Combat Bots Only 5 | . 5 3 . 4 . 4 4 4 Max Kills in Single Turn 3 | . 2 1 . 1 . 2 2 3 Gunslinging 1 | . 1 . . . . . . . Exploded 2 | . . . . . . 2 1 2 Melee 1 | . . . . . . 1 . . Uniques/NPCs Destroyed . | . . . . . . . . . Combat | -11 -10 -10 -10 -9 -8 -8 -8 -8 -------- Run | Yrd Mat Min Exi Min Mat Gar Mat Gar Hostile Shots Fired 313 | . 63 19 . 23 2 146 40 20 Missed 75 | . 14 7 . 7 1 32 10 4 Damage Taken 3550 | . 473 106 . 136 16 1885 705 229 Core 709 | . 86 17 . 51 16 341 159 39 Absorbed by Shields . | . . . . . . . . . Core Remaining (%) 69 | 100 . . . 38 . . . . Volleys Fired 156 | . 38 7 . 18 . 35 49 9 Largest 3 | . 2 2 . 2 . 3 3 3 Hottest 148 | . 60 60 . 60 . 80 144 148 Shots Fired 312 | . 76 14 . 36 . 67 94 25 Gun 282 | . 76 14 . 36 . 47 88 21 Cannon . | . . . . . . . . . Launcher 30 | . . . . . . 20 6 4 Special . | . . . . . . . . . Kinetic 126 | . 38 7 . 18 . 33 23 7 Thermal 148 | . 38 7 . 18 . 14 65 6 Explosive 26 | . . . . . . 20 6 . Electromagnetic 12 | . . . . . . . . 12 Robot Hit Streak 11 | . 11 4 . 2 . 9 10 4 Robot Miss Streak 5 | . 5 2 . 4 . 2 5 2 Penetration Max . | . . . . . . . . . Secondary Targets 4 | . 2 1 . 1 . . . . Max Gunslinging Chain 1 | . 1 1 . 1 . . . . Shots Hit Robots 198 | . 51 7 . 13 . 42 70 15 Core Hits 162 | . 22 3 . 9 1 28 89 10 Critical Kills . | . . . . . . . . . Critical Parts Destroyed . | . . . . . . . . . Critical Strikes 1 | . . . . . . . 1 . Burn 1 | . . . . . . . 1 . Melee Attacks . | . . . . . . . . . Impact . | . . . . . . . . . Slashing . | . . . . . . . . . Piercing . | . . . . . . . . . Sneak Attacks . | . . . . . . . . . Combat Hostiles . | . . . . . . . . . Follow-up Attacks . | . . . . . . . . . Damage Inflicted 3657 | . 637 90 . 144 5 997 1319 465 Guns 2455 | . 637 88 . 131 . 298 1079 222 Cannons . | . . . . . . . . . Explosions 1112 | . . . . . . 635 234 243 Melee . | . . . . . . . . . Ramming 90 | . . 2 . 13 5 64 6 . Kinetic 821 | . 356 16 . 52 . 174 173 50 Thermal 1545 | . 281 72 . 79 . 124 906 83 Explosive 869 | . . . . . . 635 234 . Electromagnetic 332 | . . . . . . . . 332 Impact . | . . . . . . . . . Slashing . | . . . . . . . . . Piercing . | . . . . . . . . . Highest Corruption 1 | . 1 1 1 1 . . . . Average Corruption 1 | . 1 1 1 1 . . . . Corruption Purged . | . . . . . . . . . Corruption Blocked . | . . . . . . . . . Effects 9 | . . 4 3 2 . . . . Message Errors 3 | . . 1 . 2 . . . . Matter Fused 2 | . . 1 1 . . . . . Heat Flow Errors 1 | . . . 1 . . . . . Energy Discharges 2 | . . 1 1 . . . . . Alerts 1 | . . 1 . . . . . . Overload Shots . | . . . . . . . . . Overflow Damage 57 | . . . . . . 11 12 34 Projectiles . | . . . . . . . . . Explosions 57 | . . . . . . 11 12 34 Melee . | . . . . . . . . . Knockbacks . | . . . . . . . . . Impact . | . . . . . . . . . Kinetic . | . . . . . . . . . Secondary . | . . . . . . . . . Self-Inflicted Damage 308 | . . . . . . 141 167 . Shots 9 | . . . . . . 7 2 . Rammed 32 | . . 1 . 1 1 28 1 . Targets Rammed 33 | . . 1 . 1 1 29 1 . Kicked . | . . . . . . . . . Crushed 1 | . . . . . . 1 . . Highest Temperature 198 | . 66 32 130 36 . 34 198 18 Average Temperature 38 | . 24 16 66 15 . 15 65 7 Received Heat Transfer 1091 | . 126 . . 20 9 657 243 36 Siege Activations . | . . . . . . . . . Robots Corrupted . | . . . . . . . . . Combat Hostiles . | . . . . . . . . . Parts Fried 2 | . . . . . . . . 2 Impact Corruptions . | . . . . . . . . . Robots Melted . | . . . . . . . . . Combat Hostiles . | . . . . . . . . . Parts Melted 6 | . 1 1 . 2 . . 2 . Heat Transferred 2838 | . 625 150 . 175 . 275 1428 185 Parts Sabotaged . | . . . . . . . . . Parts Stolen . | . . . . . . . . . Parts Stripped . | . . . . . . . . . Power Chain Reactions 1 | . . . . . . . . 1 Alert | -11 -10 -10 -10 -9 -8 -8 -8 -8 ------- Run | Yrd Mat Min Exi Min Mat Gar Mat Gar Peak Influence 528 | . 149 97 . 175 . 370 528 394 Initial 191 | . . 19 . . . . 180 191 Average 159 | . 52 43 . 127 . 188 312 289 Maximum Alert Level 2 | . . . . . . 1 2 1 Low Security (%) 70 | 100 100 100 . 100 100 58 22 30 Level 1 27 | . . . . . . 41 62 69 Level 2 2 | . . . . . . . 15 . Level 3 . | . . . . . . . . . Level 4 . | . . . . . . . . . Level 5 . | . . . . . . . . . High Security . | . . . . . . . . . Max Security . | . . . . . . . . . Squads Dispatched 4 | . 2 . . . . . 2 . Investigation . | . . . . . . . . . Extermination . | . . . . . . . . . Reinforcement 3 | . 2 . . . . . 1 . Assault . | . . . . . . . . . Garrison 1 | . . . . . . . 1 . Intercept . | . . . . . . . . . Searches Triggered . | . . . . . . . . . Construction Impeded 1 | . . . . . . . 1 . Haulers Reinforced . | . . . . . . . . . Active Scanning Responses . | . . . . . . . . . Cargo Convoy Interrupts . | . . . . . . . . . Stealth | -11 -10 -10 -10 -9 -8 -8 -8 -8 --------- Run | Yrd Mat Min Exi Min Mat Gar Mat Gar Distress Signals 4 | . . . . . . . 2 2 Communications Jammed . | . . . . . . . . . Distress Signals . | . . . . . . . . . Times Spotted 73 | . 17 3 . 8 3 15 17 10 Peak Tracking Total 6 | . 5 3 . 5 3 6 5 6 Tactical Retreats 4 | . . . . 1 . 2 . 1 Traps | -11 -10 -10 -10 -9 -8 -8 -8 -8 ------- Run | Yrd Mat Min Exi Min Mat Gar Mat Gar Traps Triggered 5 | . . . . . . 4 . 1 Indirectly 1 | . . . . . . . . 1 Trap Hack Attempts . | . . . . . . . . . Triggered . | . . . . . . . . . Disarmed . | . . . . . . . . . Reprogrammed . | . . . . . . . . . Reused . | . . . . . . . . . Traps Extracted . | . . . . . . . . . Installed . | . . . . . . . . . Triggered . | . . . . . . . . . Machines | -11 -10 -10 -10 -9 -8 -8 -8 -8 ---------- Run | Yrd Mat Min Exi Min Mat Gar Mat Gar Machines Disabled 3 | . . . . . . 1 2 . Max in Single Turn 2 | . . . . . . 1 2 . Garrison Relay 1 | . . . . . . 1 . . Machines Repaired . | . . . . . . . . . Machines Dismantled . | . . . . . . . . . Machines Sabotaged . | . . . . . . . . . Overloaded Fab Kills . | . . . . . . . . . Hacking | -11 -10 -10 -10 -9 -8 -8 -8 -8 --------- Run | Yrd Mat Min Exi Min Mat Gar Mat Gar Machines Accessed 12 | . 6 . . . 1 1 4 . Terminals 10 | . 6 . . . . 1 3 . Fabricators . | . . . . . . . . . Repair Stations . | . . . . . . . . . Recycling Units . | . . . . . . . . . Scanalyzers . | . . . . . . . . . Garrison Access 2 | . . . . . 1 . 1 . Total Hacks 32 | . 21 . . . 2 1 8 . Successful 17 | . 12 . . . 1 1 3 . Failed 15 | . 9 . . . 1 . 5 . Catastrophic 4 | . 4 . . . . . . . Database Lockouts . | . . . . . . . . . Manual 12 | . 9 . . . . . 3 . Terminals 29 | . 21 . . . . 1 7 . Fabricators . | . . . . . . . . . Repair Stations . | . . . . . . . . . Recycling Units . | . . . . . . . . . Scanalyzers . | . . . . . . . . . Garrison Access 3 | . . . . . 2 . 1 . Terminal Hacks 12 | . 10 . . . . 1 1 . Robot Analysis 3 | . 3 . . . . . . . Prototype ID Bank 2 | . 2 . . . . . . . Emergency Access Points 1 | . . . . . . 1 . . Terminal Index 1 | . 1 . . . . . . . Unreport Threat 2 | . 1 . . . . . 1 . Recall Reinforcements 1 | . 1 . . . . . . . Hauler Manifests 1 | . 1 . . . . . . . Zone Layout 1 | . 1 . . . . . . . Fabricator Hacks . | . . . . . . . . . Repair Station Hacks . | . . . . . . . . . Recycling Unit Hacks . | . . . . . . . . . Scanalyzer . | . . . . . . . . . Garrison Access Hacks 2 | . . . . . 1 . 1 . Unlock Access 2 | . . . . . 1 . 1 . Unauthorized Hacks 3 | . 2 . . . . . 1 . Terminals 3 | . 2 . . . . . 1 . Botnet 2 | . 1 . . . . . 1 . Operators 1 | . 1 . . . . . . . Fabricators . | . . . . . . . . . Repair Stations . | . . . . . . . . . Recycling Units . | . . . . . . . . . Scanalyzers . | . . . . . . . . . Garrison Access . | . . . . . . . . . Data Cores Recovered 1 | . 1 . . . . . . . Used . | . . . . . . . . . Hacking Detections 11 | . 6 . . . 1 1 3 . Full Trace Events 1 | . 1 . . . . . . . Feedback Events 1 | . 1 . . . . . . . Corruption 1 | . 1 . . . . . . . Feedback Blocked . | . . . . . . . . . Robot Schematics Acquired . | . . . . . . . . . Robots Built . | . . . . . . . . . Authchips . | . . . . . . . . . Time . | . . . . . . . . . Total Robot Build Rating . | . . . . . . . . . Part Schematics Acquired . | . . . . . . . . . Parts Built . | . . . . . . . . . Authchips . | . . . . . . . . . Time . | . . . . . . . . . Total Part Build Rating . | . . . . . . . . . Parts Repaired . | . . . . . . . . . Time . | . . . . . . . . . Parts Recycled . | . . . . . . . . . Recycled Matter . | . . . . . . . . . Retrieved Matter . | . . . . . . . . . Retrieved Components . | . . . . . . . . . Parts Scanalyzed . | . . . . . . . . . Part Schematics Acquired . | . . . . . . . . . Parts Damaged . | . . . . . . . . . Bothacking | -11 -10 -10 -10 -9 -8 -8 -8 -8 ------------ Run | Yrd Mat Min Exi Min Mat Gar Mat Gar Used RIF Installer 1 | . . . . . . 1 . . Robots Hacked . | . . . . . . . . . Non-combat . | . . . . . . . . . Combat . | . . . . . . . . . Robot Hacks Applied . | . . . . . . . . . Relay Couplers Released 4 | . . . . . . 4 . . Machine Destruction 4 | . . . . . . 4 . . Fabnet Peak Effective % . | . . . . . . . . . Robots Rewired . | . . . . . . . . . Allies Hacked . | . . . . . . . . . Hacks Repelled . | . . . . . . . . . Allies | -11 -10 -10 -10 -9 -8 -8 -8 -8 -------- Run | Yrd Mat Min Exi Min Mat Gar Mat Gar Total Allies 2 | . . 2 . . . . . . Largest Group 2 | . . 2 2 . . . . . Highest-Rated Group 54 | . . 54 54 . . . . . Highest-Rated Ally 31 | . . 31 31 . . . . . Total Orders . | . . . . . . . . . Ally Attacks 3 | . . 3 . . . . . . Total Damage 22 | . . 22 . . . . . . Kills . | . . . . . . . . . Allies Corrupted . | . . . . . . . . . Allies Melted . | . . . . . . . . . Intel | -11 -10 -10 -10 -9 -8 -8 -8 -8 ------- Run | Yrd Mat Min Exi Min Mat Gar Mat Gar Robot Analysis Total 3 | . 3 . . . . . . . Derelict Logs Recovered 3 | . . 2 . 1 . . . . Drone Launches . | . . . . . . . . . Drone Recoveries . | . . . . . . . . . Exploration | -11 -10 -10 -10 -9 -8 -8 -8 -8 ------------- Run | Yrd Mat Min Exi Min Mat Gar Mat Gar Turns Passed 3518 | 68 658 430 351 400 52 624 539 396 Spaces Moved 1712 | 38 320 246 220 216 29 228 205 210 Core 6 | 6 . . . . . . . . Treads 1489 | 32 320 246 220 216 29 77 139 210 Legs 217 | . . . . . . 151 66 . Wheels . | . . . . . . . . . Hover . | . . . . . . . . . Flight . | . . . . . . . . . Fastest Speed 50 | 50 160 160 160 160 160 160 160 160 Average Speed 165 | 142 160 160 160 160 160 194 171 160 Slowest Speed 250 | 160 160 160 160 160 160 250 190 160 Overloaded Moves . | . . . . . . . . . Propulsion Burnouts . | . . . . . . . . . Robots Hopped . | . . . . . . . . . Cave-ins Triggered . | . . . . . . . . . Exploration Rate (%) 37 | 3 57 49 60 56 6 44 26 35 Regions Visited 8 Branch Regions 3 Pre-discovered Areas 1 | . . 1 . . . . . . Known Exits Taken 3 | . . . . 1 1 . 1 . Unknown Exits Taken 4 | 1 1 1 1 . . . . . Scrap Searched 3 | . . 2 . 1 . . . . Spaces Dug 1 | . . . . . . 1 . . Terrain Destroyed 126 | . . . . . . 64 59 3 Melee . | . . . . . . . . . Projectile . | . . . . . . . . . AOE 126 | . . . . . . 64 59 3 Terrain Rammed . | . . . . . . . . . Walls Destroyed . | . . . . . . . . . Machines Disabled . | . . . . . . . . . Actions | -11 -10 -10 -10 -9 -8 -8 -8 -8 --------- Run | Yrd Mat Min Exi Min Mat Gar Mat Gar Total 2110 | 49 395 270 219 239 35 334 317 252 Wait 51 | . 4 10 . . . 6 26 5 Move 1706 | 37 319 245 219 215 29 227 205 210 Hop . | . . . . . . . . . Pick Up 53 | 6 17 3 . 1 2 9 10 5 Fast Attach 20 | 6 3 . . . . 1 7 3 Attach 23 | . 1 . . 1 3 12 6 . Detach 6 | . 1 . . . 1 . 4 . Swap 13 | . 2 1 . 1 . . 2 7 Drop 32 | . 10 3 . 2 . . 7 10 Fire 156 | . 38 7 . 18 . 35 49 9 Melee . | . . . . . . . . . Ram . | . . . . . . . . . Kick . | . . . . . . . . . Crush 32 | . . 1 . 1 . 29 1 . Escape Stasis 18 | . . . . . . 15 . 3 Rewire . | . . . . . . . . . Trap . | . . . . . . . . . Miscellaneous . | . . . . . . . . . Route ------- -11/Scrapyard -10/Materials (discovered 4 exits: [*Mat x2] / [*Min x2]) -10/Mines (discovered 2 exits: [*Mat] / [*Exi]) -10/Exiles -9/Mines -8/Materials (discovered 2 exits: Fac / Gar) -8/Garrison -8/Materials -8/Garrison History --------- Turn | Location | Event 9 | -11/Scrapyard | Discovered new exit (range 14) 69 | -11/Scrapyard | Entered Materials 302 | -10/Materials | Discovered new exit (range 17) 303 | -10/Materials | Build established: Mutant 303 | -10/Materials | Discovered new exit (range 16) 359 | -10/Materials | Discovered new exit (range 15) 573 | -10/Materials | Discovered new exit (range 16) 727 | -10/Materials | Entered Mines 743 | -10/Mines | Learned location of Storage (-9) 831 | -10/Mines | Learned Materials terminal intel 946 | -10/Mines | Learned 8 Materials zone layouts 972 | -10/Mines | Discovered new exit (range 7) 1014 | -10/Mines | Found a damaged Exp. Sensor Array with a note attached 1018 | -10/Mines | Found Prototype Device 1124 | -10/Mines | Deemed a non-threat by the Exiles lab entrance 1124 | -10/Mines | Discovered new exit (range 5) 1157 | -10/Mines | Entered Exiles 1157 | -10/Exiles | Accompanied by 2 allies 1187 | -10/Exiles | Led the pair of lost Derelicts to a safe place 1199 | -10/Exiles | Met 8R-AWN 1225 | -10/Exiles | Met EX-HEX 1292 | -10/Exiles | Met EX-DEC 1490 | -10/Exiles | Discovered new exit (range 14) 1508 | -10/Exiles | Entered Mines 1515 | -9/Mines | Joined a pair of Derelicts in attacking an 0b10 outpost 1551 | -9/Mines | Assembled infested the area 1662 | -9/Mines | Core integrity fell below 50% 1714 | -9/Mines | Identified exit to Materials 1908 | -9/Mines | Entered Materials 1908 | -8/Materials | Evolved 4 slots: Propulsion x1, Utility x2, Weapon x1 1909 | -8/Materials | Identified exit to Factory 1910 | -8/Materials | Loaded intel: 12 terminal locations 1910 | -8/Materials | Identified Exp. Sensor Array 1951 | -8/Materials | Identified exit to Garrison 1960 | -8/Materials | Entered Garrison 2014 | -8/Garrison | Triggered checkpoint 2161 | -8/Garrison | Core integrity fell below 50% 2194 | -8/Garrison | Lost 11 parts (2p6n3w) 2324 | -8/Garrison | Triggered checkpoint 2423 | -8/Garrison | Garrison Relay disabled 2436 | -8/Garrison | Triggered checkpoint 2500 | -8/Garrison | Discovered new exit (range 11) 2554 | -8/Garrison | Installed Relay Interface Framework 2584 | -8/Garrison | Entered Materials 2644 | -8/Materials | Core integrity fell below 20% 3104 | -8/Materials | Garrison activated, responded to threat 3123 | -8/Materials | Identified exit to Garrison 3123 | -8/Materials | Entered Garrison 3150 | -8/Garrison | Build established: Scavenger-Gunner 3381 | -8/Garrison | Triggered checkpoint 3421 | -8/Garrison | Triggered checkpoint 3515 | -8/Garrison | Build established: Scavenger-Tank 3517 | -8/Garrison | Triggered checkpoint 3519 | -8/Garrison | Destroyed by S-10 Pest with Light Assault Rifle Last Messages --------------- 03274_ Stasis field depleted. 03276_ Dropped Seismic Detector. 03276_ Acquired Lgt. Armor Plating. 03281_ Dropped Mni. Grenade Launcher. 03282_ Acquired Lgt. Armor Plating. 03287_ Acquired 44 matter. 03381_ Beams of light sweep through the air. An alarm sounds. 03384_ Y-45 Defender destroyed. 03390_ Dropped Lgt. Treads. 03392_ Acquired 14 matter. 03395_ Dropped Autogun. 03399_ Dropped Lgt. Deuterium Engine. 03400_ Acquired Beam Rifle. 03421_ Beams of light sweep through the air. An alarm sounds. 03450_ Penetrated by Slug. 03455_ H-55 Commando shuts down. 03458_ H-55 Commando destroyed. 03468_ Acquired 22 matter. 03517_ Beams of light sweep through the air. An alarm sounds. [Achievement: Back For More] Map ----- +----------------------------------------------------+ | | | | | | | | | | | | | ???????????????????????????????????????????? | | ???????????????????????????????????????????? | | ???????????????????????????????????????????? | | ???????????????????????????????????????????? | | ????????????????????? ?????????????????????? | | ????????????????????? ?????????????????????? | | ????????????????????? ?????????????????????? | | ????????????????????? ?????????????????????? | | ????????????????????? #????????????????????? | | ??????????????????### #????????????????????? | | ??????????????????# ????????????????????? | | ??????????????????# ????????????????????? | | ??????????????????# ????????????????????? | | ??????????????????# #????????????????????? | | ??????????????????# #????????????????????? | | ??????????????????# #????????????????????? | | ??????????????????# ######???????????????? | | ??????????????????# #???????????????? | | ??????????????????# #???????????????? | | ??????????????????# ###@ #???????????????? | | ??????????????????# #?# #???????????????? | | ??????????????????# #?# s#???????????????? | | ??????????????????# #?# s ???????????????? | | ??????????????????# #?# s ??????????????? | | ??????????????????# #?# #?????????????? | | ??????????????????# #?# ###?????????????? | | ??????????????????# #?# #???????????????? | | ??????????????????# #?# #???????????????? | | ??????????????????# #?? #???????????????? | | ??????????????????# #?? #???????????????? | | ??????????????????# #?? ???????????????? | | ################### #?? ???????????????? | | = #?? ???????????????? | | [%= #?? #???????????????? | | #?? ????????????????? | | ######################????????????????????? | | #?????????????????????????????????????????? | | #?????????????????????????????????????????? | | #?????????????????????????????????????????? | | #?????????????????????????????????????????? | | #?????????????????????????????????????????? | | #?????????????????????????????????????????? | | #?????????????????????????????????????????? | | #?????????????????????????????????????????? | +----------------------------------------------------+ Best States ------------- Heat Dissipation 59 Coolant Potential 50 Energy Generation 23 Energy Capacity 280 Matter Stores 300 Matter Capacity 300 Sight Range 16 Robot Scan Range 20 Terrain Scan Density 10 Armor Coverage 150 Evasion (%) 40 Recoil Reduction 3 Item Schematics ----------------- None Robot Schematics ------------------ None Fabricated ------------ Nothing Alien Tech Used ----------------- None Achievements -------------- Back For More Challenges ------------ None Game ------ Seed ArcOvertunedMagmablaster Manual? 0 Play Time 00:25:47 Cumulative 88.5 hours Start 2024.09.04 @ 21:56:32 End 2024.09.04 @ 22:22:55 Sessions 1 Manual Loads 0 Difficulty Rogue Special Mode None Game No. 50 Rogue 50 Adventurer 0 Explorer 0 Win Type - Total 3 Types 1/0/0/2/0/0/0/0/0 Lore% 46 Gallery% 61 Achievement% 54 Wizard Run 0 Options --------- Layout 0 ASCII 0 Keyboard 0 Movement Mouse Keybinds 0 Fullscreen 1 Font 18/X11 Map View 76x50 Zoom Use 0% Tactical HUD 1 Map Filters NONE Filters NONE Steam 1 RUN: a411d961-8c72-47ee-9a63-930f7d701f5d